bitfinex/quotes_SOLUSD_20250811
["timestamp","ask_amount","ask_price","bid_price","bid_amount"]
[1754911014294,59.39627758,180.56,180.55,1e-08]
[1754911014771,8.0317368,180.47,180.4,4.54666666]
[1754911015091,8.0317368,180.47,180.42,8.0317368]
[1754911015485,8.0317368,180.48,180.43,8.2417368]
[1754911015686,8.0317368,180.52,180.47,8.0317368]
[1754911016004,8.0317368,180.52,180.47,47.9917368]
[1754911016286,13.57156267,180.52,180.47,47.9917368]
[1754911016487,13.57100394,180.53,180.48,8.0317368]
[1754911016868,5.53926714,180.53,180.48,8.0317368]
[1754911017067,140.0,180.52,180.48,8.0317368]
[1754911017489,140.0,180.52,180.49,0.58]
[1754911017790,140.0,180.52,180.49,8.6117368]
[1754911018170,5.53985928,180.51,180.48,8.0317368]
[1754911018372,5.53985928,180.51,180.5,0.58]
[1754911019676,145.53962218,180.52,180.5,0.58]
[1754911020179,8.0317368,180.51,180.48,0.58]
[1754911020371,140.0,180.52,180.5,0.58]
[1754911020579,0.72,180.57,180.51,8.0317368]
[1754911020893,8.0317368,180.56,180.52,47.9517368]
[1754911021105,14.28980868,180.57,180.52,48.5317368]
[1754911021282,8.0317368,180.55,180.52,40.5]
[1754911021470,8.0317368,180.53,180.5,0.58]
[1754911021672,5.53893873,180.54,180.5,0.58]
[1754911021673,8.0317368,180.52,180.51,39.94]
[1754911022270,8.0317368,180.52,180.5,0.58]
[1754911022477,8.0317368,180.51,180.5,0.58]
[1754911022701,19.38628557,180.54,180.5,0.58]
[1754911022905,8.0317368,180.52,180.5,0.58]
[1754911023106,8.0317368,180.51,180.5,0.58]
[1754911023482,13.57159608,180.51,180.5,0.58]
[1754911023782,5.53985928,180.51,180.5,0.58]
[1754911023980,13.57159608,180.51,180.5,0.58]
[1754911024301,8.0317368,180.52,180.5,0.58]
[1754911024499,5.53924555,180.53,180.5,0.58]
[1754911024695,8.0317368,180.51,180.5,0.58]
[1754911024898,5.53924555,180.53,180.5,0.58]
[1754911025474,8.0317368,180.51,180.5,0.58]
[1754911026006,19.3855951,180.55,180.5,0.58]
[1754911026201,8.0317368,180.51,180.5,0.58]
[1754911027477,13.57159608,180.51,180.5,0.58]
[1754911028275,5.53985928,180.51,180.5,0.58]
[1754911028482,10.56674169,180.51,180.5,0.58]
[1754911029575,5.53985928,180.51,180.5,0.58]
[1754911029904,10.56674169,180.51,180.5,0.58]
[1754911030386,5.02688241,180.52,180.5,0.58]
[1754911030789,5.02688241,180.51,180.5,0.58]
[1754911031303,19.38628557,180.54,180.5,0.58]
[1754911031616,0.72,180.55,180.5,0.58]
[1754911031783,0.72,180.55,180.5,40.48]
[1754911031784,5.02688241,180.52,180.5,40.48]
[1754911032305,5.53893873,180.54,180.5,40.48]
[1754911032495,145.02688241,180.53,180.5,40.48]
[1754911032808,5.5395524,180.52,180.5,40.48]
[1754911033009,10.56643481,180.52,180.5,40.48]
[1754911033596,5.5395524,180.52,180.5,40.48]
[1754911033807,10.56643481,180.52,180.5,40.46]
[1754911033995,10.56643481,180.52,180.5,39.88]
[1754911034611,5.5395524,180.52,180.5,39.88]
[1754911034790,5.53832521,180.56,180.51,5.02688241]
[1754911034990,5.53832521,180.56,180.52,5.02688241]
[1754911035187,10.56520762,180.56,180.51,5.02688241]
[1754911035385,13.84318916,180.6,180.53,5.02688241]
[1754911035608,5.02688241,180.61,180.56,5.02688241]
[1754911035905,10.56306133,180.63,180.58,5.02688241]
[1754911036110,140.0,180.6,180.58,5.02688241]
[1754911036441,140.0,180.6,180.57,44.90688241]
[1754911036618,140.0,180.6,180.59,5.02688241]
[1754911036788,140.0,180.6,180.58,5.02688241]
[1754911036987,140.0,180.6,180.59,5.02688241]
[1754911037288,140.0,180.6,180.58,5.02688241]
[1754911037500,140.0,180.6,180.59,5.02688241]
[1754911037694,5.53584404,180.65,180.59,5.02688241]
[1754911037895,10.56272645,180.65,180.6,5.02688241]
[1754911038096,10.56272645,180.65,180.55,26.0]
[1754911038294,5.02688241,180.63,180.59,5.02688241]
[1754911038505,5.02688241,180.63,180.6,39.86]
[1754911038812,5.5363564,180.63,180.6,39.86]
[1754911039284,5.5363564,180.63,180.58,5.02688241]
[1754911039482,10.56323881,180.63,180.59,39.84]
[1754911039912,10.56323881,180.63,180.59,44.86688241]
[1754911040709,140.0,180.62,180.59,44.86688241]
[1754911041292,140.0,180.62,180.59,39.84]
[1754911041514,140.0,180.62,180.59,44.86688241]
[1754911041808,140.0,180.62,180.6,5.02688241]
[1754911042015,140.0,180.62,180.61,5.02688241]
[1754911042791,140.0,180.62,180.59,45.37727154]
[1754911043007,0.03,180.63,180.61,5.02688241]
[1754911043194,0.03,180.63,180.62,5.02688241]
[1754911045219,0.03,180.63,180.59,39.84]
[1754911045399,0.03,180.63,180.62,5.02688241]
[1754911045797,0.03,180.63,180.59,39.84]
[1754911046018,0.03,180.63,180.62,5.02688241]
[1754911046198,0.03,180.63,180.62,44.82688241]
[1754911046611,0.03,180.63,180.62,39.8]
[1754911046819,0.03,180.63,180.59,5.02688241]
[1754911046994,5.56617892,180.63,180.6,39.78]
[1754911047194,5.56617892,180.63,180.6,44.80688241]
[1754911047510,5.56617892,180.63,180.6,39.78]
[1754911048210,0.69,180.62,180.6,39.78]
[1754911048406,0.69,180.62,180.61,39.78]
[1754911048920,5.71688241,180.62,180.53,15.10621557]
[1754911049109,5.71688241,180.62,180.58,5.02688241]
[1754911049110,140.0,180.61,180.58,5.02688241]
[1754911049300,140.0,180.61,180.59,39.82]
[1754911049503,140.0,180.61,180.6,5.60688241]
[1754911050302,140.0,180.61,180.59,44.84688241]
[1754911050720,140.0,180.61,180.6,5.60688241]
[1754911051518,140.0,180.61,180.6,5.02688241]
[1754911051719,140.0,180.61,180.59,44.84688241]
[1754911051915,140.0,180.61,180.59,40.4]
[1754911052224,140.0,180.61,180.59,45.42688241]
[1754911052623,140.0,180.61,180.6,0.58]
[1754911052793,140.0,180.61,180.6,5.60688241]
[1754911052999,0.03,180.63,180.6,5.60688241]
[1754911053200,0.03,180.63,180.61,5.02688241]
[1754911053395,0.03,180.63,180.62,44.80688241]
[1754911053617,0.03,180.63,180.62,45.38688241]
[1754911054000,0.72,180.63,180.62,39.78]
[1754911055229,0.03,180.63,180.62,39.78]
[1754911055413,0.72,180.63,180.62,39.78]
[1754911055743,6.25617892,180.63,180.62,39.78]
[1754911056132,6.25617892,180.63,180.59,5.02688241]
[1754911056327,5.71688241,180.62,180.6,39.76]
[1754911056523,24.43350865,180.63,180.61,39.76]
[1754911056842,10.59306133,180.63,180.61,39.76]
[1754911057236,0.69,180.62,180.61,39.76]
[1754911057913,5.56617892,180.63,180.61,39.76]
[1754911058124,5.56617892,180.63,180.61,40.34]
[1754911058327,5.56617892,180.63,180.61,39.76]
[1754911058829,6.25617892,180.63,180.61,39.76]
[1754911059026,11.28306133,180.63,180.61,39.76]
[1754911059225,0.69,180.62,180.56,0.58]
[1754911059435,5.02688241,180.59,180.54,5.02688241]
[1754911059633,5.02688241,180.58,180.55,39.8]
[1754911059840,5.71688241,180.59,180.55,39.8]
[1754911060036,5.53771181,180.58,180.55,39.8]
[1754911061361,6.22771181,180.58,180.55,39.8]
[1754911061549,5.53771181,180.58,180.55,39.8]
[1754911062060,140.0,180.57,180.55,39.8]
[1754911062641,145.53804785,180.57,180.55,39.8]
[1754911063540,5.71688241,180.56,180.49,0.58]
[1754911063846,5.02688241,180.54,180.5,39.78]
[1754911064158,0.69,180.53,180.5,39.78]
[1754911064356,5.5395524,180.52,180.5,39.78]
[1754911064536,6.22930717,180.53,180.5,39.78]
[1754911064860,6.22930717,180.53,180.5,44.80688241]
[1754911065071,5.53930717,180.53,180.5,44.80688241]
[1754911065376,5.53930717,180.53,180.5,45.38688241]
[1754911065536,5.53930717,180.53,180.47,39.96]
[1754911065537,0.69,180.52,180.47,40.54]
[1754911065860,0.69,180.51,180.48,39.76]
[1754911066040,0.69,180.51,180.48,44.78688241]
[1754911066241,6.22994008,180.51,180.48,44.78688241]
[1754911066494,5.53994008,180.51,180.48,45.36688241]
[1754911066950,5.53961611,180.52,180.48,45.36688241]
[1754911067558,0.69,180.51,180.48,39.76]
[1754911067732,140.0,180.57,180.48,39.76]
[1754911067935,140.0,180.57,180.51,5.02688241]
[1754911068235,140.0,180.57,180.54,5.02688241]
[1754911068545,145.71688241,180.57,180.55,39.82]
[1754911068732,5.71688241,180.56,180.51,5.02688241]
[1754911068932,5.02688241,180.54,180.52,39.84]
[1754911069136,5.71688241,180.53,180.47,40.54]
[1754911069441,5.71688241,180.53,180.48,44.86688241]
[1754911069651,0.69,180.53,180.48,40.42]
[1754911069957,0.69,180.52,180.47,39.96]
[1754911070158,0.65,180.51,180.49,39.84]
[1754911070359,10.56612796,180.53,180.49,39.84]
[1754911070568,11.21612796,180.53,180.49,39.84]
[1754911070860,0.65,180.52,180.49,39.84]
[1754911071067,10.56612796,180.53,180.49,39.84]
[1754911071244,6.18924555,180.53,180.49,45.44688241]
[1754911071868,5.05688241,180.55,180.5,5.02688241]
[1754911072074,11.2457556,180.55,180.5,5.60688241]
[1754911072252,5.67688241,180.54,180.49,44.86688241]
[1754911072458,0.65,180.53,180.49,44.86688241]
[1754911072841,140.0,180.52,180.49,44.86688241]
[1754911074161,140.0,180.52,180.5,5.60688241]
[1754911074662,5.02688241,180.54,180.5,5.02688241]
[1754911074858,5.05688241,180.55,180.5,5.60688241]
[1754911075053,0.65,180.54,180.5,5.02688241]
[1754911075241,0.65,180.53,180.5,5.02688241]
[1754911075650,11.24558842,180.55,180.5,5.02688241]
[1754911075848,0.65,180.54,180.5,5.02688241]
[1754911077461,140.0,180.53,180.5,0.58]
[1754911077652,140.0,180.53,180.5,5.60688241]
[1754911077852,140.0,180.53,180.5,5.02688241]
[1754911078654,140.0,180.53,180.5,5.60688241]
[1754911079347,140.0,180.53,180.5,0.58]
[1754911079549,140.0,180.53,180.5,5.60688241]
[1754911079857,140.0,180.53,180.51,5.02688241]
[1754911080155,140.0,180.53,180.52,39.8]
[1754911080356,0.03,180.55,180.52,45.40688241]
[1754911080555,0.03,180.55,180.53,5.02688241]
[1754911080874,0.03,180.55,180.54,5.02688241]
[1754911081446,0.68,180.55,180.52,39.8]
[1754911081663,0.03,180.55,180.54,5.02688241]
[1754911082644,0.03,180.55,180.52,39.8]
[1754911082852,0.68,180.55,180.52,39.8]
[1754911083178,0.65,180.54,180.52,39.8]
[1754911083370,0.65,180.54,180.51,26.0]
[1754911083548,0.65,180.54,180.52,39.78]
[1754911083875,5.56872188,180.55,180.52,44.80688241]
[1754911083876,0.03,180.55,180.52,44.80688241]
[1754911084076,0.03,180.55,180.54,5.02688241]
[1754911084655,0.03,180.55,180.53,0.58]
[1754911084855,0.03,180.55,180.54,5.02688241]
[1754911085368,0.03,180.55,180.54,5.60688241]
[1754911085685,0.03,180.55,180.54,39.8]
[1754911086187,0.03,180.55,180.54,44.82688241]
[1754911086561,0.03,180.55,180.54,45.40688241]
[1754911087382,0.03,180.55,180.54,44.82688241]
[1754911087963,0.03,180.55,180.54,5.02688241]
[1754911088185,0.03,180.55,180.54,44.82688241]
[1754911091099,0.03,180.55,180.54,39.8]
[1754911091272,0.03,180.55,180.54,44.82688241]
[1754911091867,0.03,180.55,180.54,39.74]
[1754911091868,5.70688241,180.55,180.54,39.74]
[1754911092086,0.68,180.55,180.54,39.74]
[1754911093304,0.03,180.55,180.54,39.74]
[1754911093884,0.03,180.55,180.54,44.76688241]
[1754911094570,140.03,180.55,180.54,5.02688241]
[1754911094804,140.03,180.55,180.54,44.72688241]
[1754911095284,140.68,180.55,180.54,39.7]
[1754911096777,145.70688241,180.55,180.54,39.7]
[1754911096983,151.24551436,180.55,180.54,39.7]
[1754911097514,146.21863195,180.55,180.46,15.10621557]
[1754911097713,0.03,180.55,180.54,5.02688241]
[1754911097910,0.03,180.55,180.54,45.30688241]
[1754911098700,0.03,180.55,180.54,60.41309798]
[1754911099091,0.03,180.55,180.54,26.25203671]
[1754911099295,0.03,180.55,180.54,36.56582114]
[1754911099493,0.03,180.55,180.54,71.27893873]
[1754911099691,0.03,180.55,180.49,5.54047315]
[1754911099692,5.70688241,180.55,180.49,5.54047315]
[1754911099893,0.68,180.55,180.51,5.02688241]
[1754911100084,0.03,180.55,180.51,0.58]
[1754911100286,0.69,180.54,180.52,39.74]
[1754911100599,5.02688241,180.53,180.47,0.06]
[1754911100899,140.69,180.52,180.48,44.74688241]
[1754911101097,140.0,180.52,180.48,44.74688241]
[1754911101302,5.71688241,180.51,180.48,39.72]
[1754911101504,0.69,180.51,180.48,39.72]
[1754911101714,0.69,180.53,180.5,5.02688241]
[1754911102013,0.03,180.55,180.5,5.02688241]
[1754911102014,0.03,180.55,180.52,5.02688241]
[1754911102211,0.03,180.55,180.54,5.02688241]
[1754911102719,0.03,180.55,180.54,5.60688241]
[1754911102883,0.03,180.57,180.56,31.02688241]
[1754911103216,0.03,180.57,180.56,31.53832521]
[1754911103511,0.03,180.57,180.53,36.56612796]
[1754911103512,0.72,180.57,180.53,36.56612796]
[1754911103692,5.02688241,180.54,180.42,10.0]
[1754911103896,5.02688241,180.52,180.48,45.48078014]
[1754911104085,5.71688241,180.51,180.49,39.94]
[1754911104295,0.69,180.5,180.49,39.94]
[1754911104618,140.0,180.51,180.49,47.98226968]
[1754911104796,140.0,180.51,180.49,48.56226968]
[1754911104977,140.0,180.51,180.49,53.52254538]
[1754911105178,8.07226968,180.57,180.5,0.58]
[1754911105491,8.07226968,180.57,180.52,8.04226968]
[1754911105492,0.72,180.57,180.52,8.04226968]
[1754911105692,0.69,180.56,180.53,39.94]
[1754911105891,0.03,180.57,180.53,39.94]
[1754911106413,0.69,180.56,180.53,47.98226968]
[1754911106614,0.69,180.56,180.53,39.94]
[1754911107289,0.69,180.55,180.52,26.0]
[1754911107497,0.69,180.54,180.53,39.96]
[1754911108382,140.03,180.55,180.53,39.96]
[1754911108583,140.03,180.55,180.54,40.02]
[1754911108584,140.72,180.55,180.54,40.02]
[1754911111032,148.76226968,180.55,180.47,0.06]
[1754911111224,148.76226968,180.55,180.48,40.02]
[1754911111225,8.04226968,180.51,180.48,40.02]
[1754911111392,0.69,180.5,180.48,40.02]
[1754911111732,8.73226968,180.49,180.47,0.06]
[1754911111885,0.69,180.49,180.48,40.06]
[1754911112080,8.73226968,180.49,180.48,40.06]
[1754911112284,0.69,180.49,180.48,40.06]
[1754911112691,8.73226968,180.49,180.48,40.06]
[1754911113088,0.69,180.52,180.48,40.06]
[1754911113520,0.03,180.55,180.49,8.04226968]
[1754911113682,0.03,180.55,180.49,0.58]
[1754911113882,0.72,180.55,180.51,8.04226968]
[1754911114092,0.69,180.54,180.52,40.08]
[1754911114801,8.07226968,180.55,180.52,48.12226968]
[1754911114802,140.0,180.53,180.52,48.12226968]
[1754911115316,0.03,180.55,180.52,40.08]
[1754911115631,0.72,180.55,180.52,48.12226968]
[1754911115824,0.03,180.55,180.52,40.08]
[1754911116025,0.72,180.55,180.52,40.08]
[1754911116224,0.69,180.54,180.52,40.08]
[1754911116428,0.03,180.55,180.52,40.08]
[1754911116595,0.69,180.53,180.46,0.58]
[1754911116798,0.03,180.55,180.48,40.06]
[1754911117016,0.03,180.55,180.47,8.10226968]
[1754911117017,8.04226968,180.52,180.47,8.10226968]
[1754911117316,8.04226968,180.49,180.47,0.06]
[1754911117490,5.53924555,180.53,180.48,40.08]
[1754911117694,8.04226968,180.49,180.48,40.08]
[1754911118120,0.69,180.49,180.48,40.08]
[1754911118315,8.73226968,180.49,180.48,40.08]
[1754911118804,8.04226968,180.5,180.48,40.08]
[1754911119312,0.69,180.52,180.48,40.08]
[1754911119313,8.04226968,180.51,180.48,40.08]
[1754911119518,0.69,180.52,180.48,40.08]
[1754911119693,0.03,180.55,180.49,8.04226968]
[1754911119891,0.03,180.55,180.48,40.08]
[1754911119892,8.04226968,180.53,180.48,48.12226968]
[1754911120092,5.56863835,180.55,180.48,48.12226968]
[1754911120093,8.73226968,180.52,180.48,48.12226968]
[1754911120311,0.69,180.51,180.48,40.08]
[1754911120888,5.56863835,180.55,180.48,40.08]
[1754911120889,8.73226968,180.5,180.48,40.08]
[1754911121090,8.73226968,180.49,180.47,0.06]
[1754911121294,148.04226968,180.48,180.47,0.06]
[1754911121493,154.27304982,180.48,180.47,40.08]
[1754911121696,162.3153195,180.48,180.43,0.06]
[1754911121912,8.04226968,180.44,180.43,0.06]
[1754911122493,8.73226968,180.44,180.43,0.06]
[1754911122914,8.73226968,180.44,180.36,8.04226968]
[1754911123228,8.04226968,180.41,180.36,40.08]
[1754911123523,8.04226968,180.41,180.36,48.82226968]
[1754911123817,8.73226968,180.41,180.36,40.78]
[1754911124029,0.69,180.4,180.36,40.08]
[1754911124231,0.69,180.39,180.36,40.08]
[1754911124404,8.73226968,180.38,180.36,40.08]
[1754911124726,8.73226968,180.37,180.36,40.08]
[1754911125218,8.04226968,180.37,180.36,40.08]
[1754911125431,0.69,180.39,180.36,40.08]
[1754911125719,8.04226968,180.37,180.36,40.08]
[1754911126333,0.69,180.37,180.36,40.08]
[1754911126505,8.73226968,180.37,180.36,40.08]
[1754911127097,14.2764289,180.37,180.36,40.08]
[1754911127902,6.23415922,180.37,180.36,40.08]
[1754911128103,14.2764289,180.37,180.36,40.08]
[1754911128505,14.2764289,180.37,180.27,34.74226968]
[1754911128715,8.04226968,180.33,180.28,49.04226968]
[1754911128915,0.69,180.36,180.29,8.74226968]
[1754911128916,8.04226968,180.34,180.29,8.74226968]
[1754911129120,0.69,180.36,180.3,8.74226968]
[1754911129306,8.04226968,180.35,180.3,8.24226968]
[1754911129499,0.69,180.36,180.31,8.04226968]
[1754911129702,0.69,180.36,180.29,0.7]
[1754911129926,8.04226968,180.34,180.3,40.3]
[1754911130108,8.04226968,180.34,180.3,41.02]
[1754911130318,5.54323725,180.4,180.31,8.76226968]
[1754911130502,8.04226968,180.37,180.32,8.04226968]
[1754911130704,5.54323725,180.4,180.33,0.72]
[1754911130922,140.0,180.39,180.36,0.06]
[1754911131128,8.04226968,180.38,180.36,0.06]
[1754911131426,8.04226968,180.39,180.36,0.06]
[1754911131616,8.04226968,180.4,180.36,0.06]
[1754911131815,5.54296484,180.41,180.36,0.06]
[1754911132205,8.04226968,180.39,180.36,0.06]
[1754911132711,0.03,180.43,180.36,8.10226968]
[1754911132914,0.03,180.43,180.39,8.04226968]
[1754911133122,0.03,180.43,180.4,40.28]
[1754911133629,8.04226968,180.42,180.4,40.28]
[1754911133929,0.03,180.43,180.4,40.28]
[1754911134135,8.07226968,180.43,180.4,40.28]
[1754911134446,140.0,180.42,180.4,40.28]
[1754911136010,148.04226968,180.42,180.4,40.28]
[1754911136206,140.0,180.42,180.4,40.28]
[1754911137838,146.20264757,180.42,180.4,40.28]
[1754911138034,0.66,180.41,180.4,40.28]
[1754911138235,8.70226968,180.41,180.4,40.28]
[1754911138449,14.24519967,180.41,180.4,40.28]
[1754911138751,8.04226968,180.42,180.4,40.28]
[1754911138905,0.03,180.43,180.4,40.28]
[1754911139106,8.04226968,180.42,180.4,40.28]
[1754911139335,0.03,180.43,180.4,40.28]
[1754911139544,8.07226968,180.43,180.4,40.28]
[1754911140436,0.03,180.43,180.42,13.58489244]
[1754911140630,0.03,180.43,180.42,14.30489244]
[1754911140839,8.04226968,180.52,180.42,14.30489244]
[1754911141013,8.04226968,180.52,180.48,8.04226968]
[1754911141214,8.04226968,180.49,180.42,5.54262276]
[1754911141439,8.04226968,180.46,180.42,5.54262276]
[1754911141621,8.04226968,180.44,180.38,15.10621557]
[1754911141825,8.04226968,180.44,180.39,40.22]
[1754911141826,8.04226968,180.41,180.39,40.22]
[1754911142053,0.5,180.51,180.39,40.22]
[1754911142054,8.04226968,180.43,180.39,40.22]
[1754911142217,8.04226968,180.44,180.4,0.72]
[1754911142409,8.04226968,180.44,180.39,48.26226968]
[1754911142640,8.04226968,180.41,180.37,26.0]
[1754911142856,8.04226968,180.4,180.38,40.22]
[1754911143030,8.04226968,180.41,180.38,40.22]
[1754911143218,8.04226968,180.41,180.38,40.94]
[1754911143734,0.66,180.46,180.4,8.04226968]
[1754911143926,8.04226968,180.43,180.39,0.72]
[1754911144121,0.66,180.45,180.39,0.72]
[1754911144328,8.04226968,180.43,180.39,0.72]
[1754911144722,8.04226968,180.43,180.38,53.80602806]
[1754911144919,8.04226968,180.43,180.37,26.72]
[1754911144920,140.66,180.42,180.37,26.72]
[1754911145133,8.04226968,180.4,180.38,40.18]
[1754911145350,5.54235752,180.43,180.38,40.18]
[1754911145528,8.04226968,180.4,180.38,40.18]
[1754911145723,8.04226968,180.43,180.39,0.72]
[1754911146230,8.04226968,180.4,180.36,0.06]
[1754911146444,0.66,180.42,180.37,40.2]
[1754911146650,8.04226968,180.39,180.37,40.2]
[1754911146830,0.66,180.41,180.37,40.2]
[1754911147156,0.66,180.4,180.37,40.2]
[1754911147360,8.70226968,180.39,180.37,40.2]
[1754911147660,0.66,180.41,180.37,40.2]
[1754911147827,5.54252246,180.43,180.37,40.92]
[1754911148027,8.04226968,180.41,180.37,40.92]
[1754911148229,8.70226968,180.4,180.37,40.2]
[1754911148428,148.04226968,180.39,180.37,40.2]
[1754911148643,148.70226968,180.39,180.37,40.2]
[1754911149447,148.04226968,180.39,180.37,40.2]
[1754911149648,148.70226968,180.39,180.37,40.2]
[1754911150242,8.70226968,180.38,180.37,40.2]
[1754911150467,8.04226968,180.38,180.37,40.16]
[1754911150756,14.24612154,180.38,180.37,40.16]
[1754911152158,14.24612154,180.38,180.36,0.06]
[1754911152327,8.04226968,180.37,180.36,0.06]
[1754911152526,14.2464289,180.37,180.36,0.06]
[1754911152936,36.14909665,180.37,180.27,0.06]
[1754911153138,8.70226968,180.36,180.33,0.06]
[1754911153478,8.04226968,180.34,180.31,0.06]
[1754911153641,8.04226968,180.32,180.31,0.06]
[1754911154139,8.70226968,180.32,180.31,0.06]
[1754911154738,38.70226968,180.32,180.31,0.06]
[1754911155235,14.24796621,180.32,180.31,0.06]
[1754911155431,8.70226968,180.32,180.31,0.06]
[1754911155854,14.24796621,180.32,180.31,0.06]
[1754911156351,8.04226968,180.32,180.31,0.06]
[1754911156731,8.70226968,180.32,180.31,0.06]
[1754911157537,8.04226968,180.32,180.31,0.06]
[1754911157741,0.66,180.35,180.31,0.06]
[1754911158459,8.04226968,180.32,180.31,0.06]
[1754911160937,13.58796621,180.32,180.31,0.06]
[1754911161755,14.08796621,180.32,180.31,0.06]
[1754911162338,8.54226968,180.32,180.31,0.06]
[1754911163134,14.08796621,180.32,180.31,0.06]
[1754911165341,44.08796621,180.32,180.31,0.06]
[1754911166057,44.80796621,180.32,180.31,0.06]
[1754911166664,38.54226968,180.32,180.31,0.06]
[1754911167342,39.26226968,180.32,180.31,0.06]
[1754911167560,9.26226968,180.32,180.31,0.06]
[1754911168043,14.80796621,180.32,180.31,0.06]
[1754911168570,9.26226968,180.32,180.31,0.06]
[1754911169249,30.5,180.32,180.31,0.06]
[1754911169452,30.0,180.32,180.31,0.72]
[1754911169855,30.0,180.32,180.31,0.06]
[1754911170244,0.72,180.32,180.31,0.06]
[1754911170860,8.76226968,180.32,180.31,0.06]
[1754911171669,0.72,180.32,180.31,0.06]
[1754911171976,0.72,180.36,180.31,8.10226968]
[1754911172144,0.72,180.36,180.32,8.04226968]
[1754911172346,0.72,180.35,180.32,8.04226968]
[1754911172588,0.72,180.35,180.33,8.04226968]
[1754911172756,13.85320656,180.47,180.33,8.04226968]
[1754911172757,0.72,180.37,180.34,8.04226968]
[1754911172958,8.04226968,180.41,180.36,13.5867363]
[1754911173195,34.04226968,180.48,180.36,45.54446662]
[1754911173363,8.04226968,180.48,180.36,45.54446662]
[1754911173562,0.03,180.39,180.36,45.54446662]
[1754911173770,0.03,180.37,180.36,45.54446662]
[1754911173977,0.03,180.37,180.36,53.5867363]
[1754911174159,0.75,180.37,180.36,53.5867363]
[1754911174668,0.75,180.37,180.36,40.0]
[1754911174863,0.75,180.37,180.36,45.54446662]
[1754911175867,0.75,180.37,180.36,40.0]
[1754911176560,0.75,180.37,180.36,45.54446662]
[1754911177493,0.03,180.37,180.36,45.54446662]
[1754911177957,0.75,180.37,180.36,45.54446662]
[1754911178476,0.03,180.37,180.36,68.69295187]
[1754911178794,0.03,180.39,180.38,41.10621557]
[1754911179086,0.03,180.39,180.38,49.14848525]
[1754911179246,0.03,180.39,180.38,49.80848525]
[1754911180170,0.03,180.39,180.38,49.14848525]
[1754911180355,0.03,180.39,180.38,55.35233711]
[1754911180959,0.03,180.39,180.38,47.31006743]
[1754911181167,0.03,180.39,180.38,46.65006743]
[1754911181368,1e-08,180.39,180.38,55.35233711]
[1754911181875,0.72,180.48,180.43,15.10621557]
[1754911182080,8.04226968,180.52,180.47,8.04226968]
[1754911182277,8.04226968,180.52,180.48,47.98226968]
[1754911182583,0.72,180.51,180.48,45.48050171]
[1754911182752,8.04226968,180.5,180.48,39.94]
[1754911183158,8.76226968,180.49,180.48,39.22]
[1754911183354,8.76226968,180.49,180.42,8.04226968]
[1754911183551,0.64,180.48,180.44,8.04226968]
[1754911183861,0.64,180.5,180.45,8.04226968]
[1754911184073,0.64,180.49,180.46,39.96]
[1754911184276,0.64,180.52,180.46,40.62]
[1754911184478,5.53985928,180.51,180.46,48.00226968]
[1754911184667,148.04226968,180.5,180.46,48.00226968]
[1754911184867,0.64,180.49,180.46,39.96]
[1754911185079,0.64,180.49,180.46,48.00226968]
[1754911185379,14.22212896,180.51,180.46,48.00226968]
[1754911185580,8.04226968,180.49,180.44,5.5420076]
[1754911185761,0.64,180.5,180.45,39.94]
[1754911186250,0.64,180.5,180.43,26.66]
[1754911186251,8.04226968,180.47,180.46,39.94]